Workbook

Sheet connected_growers
A1: parameter names and values | F1: addition | G1: motivation | R1: addition | S1: motivation
C2: ini_addition | D2: 0.01 | F2: =ini_addition -> 0.01 | G2: =ini_motivation -> 0.1 | R2: =ini_addition -> 0.01 | S2: =ini_motivation -> 0.1
C3: rate_addition | D3: 0.1 | F3: =F2+F2*rate_addition*(1-F2/car_addition)+F2*(effect_motivation_on_addition*G2) -> 0.01104 | G3: =G2+G2*rate_motivation*(1-G2/car_motivation)+G2*(effect_addition_on_motivation*(F3-F2)) -> 0.109104 | I3: F3=F2+F2*rate_addition*(1-F2/car_addition)+F2*(effect_motivation_on_addition*G2) | R3: =R2+R2*rate_addition*(1-R2/car_addition)+R2*(effect_motivation_on_addition*S2) -> 0.01104 | S3: =S2+S2*rate_motivation*(1-S2/car_motivation)+S2*(effect_addition_on_motivation*((R3-R2)/R3)) -> 0.1184202899
C4: car_addition | D4: 1 | F4: 0.01219203725 | G4: 0.1189497236 | R4: 0.01219717984 | S4: 0.1400948394
F5: 0.01346888837 | G5: 0.1295816734 | I5: G3=G2+G2*rate_motivation*(1-G2/car_motivation)+G2*(effect_addition_on_motivation*(F3-F2)) | R5: 0.0134874588 | S5: 0.1655438524
C6: ini_motivation | D6: 0.1 | F6: 0.01488490216 | G6: 0.1410441891 | R6: 0.01492965182 | S6: 0.1953491712
C7: rate_motivation | D7: 0.1 | F7: 0.0164562078 | G7: 0.1533808852 | R7: 0.01654615231 | S7: 0.2301528808
C8: car_motivation | D8: 1 | F8: 0.01820095129 | G8: 0.1666340145 | R8: 0.01836379726 | S8: 0.2706516197
F9: 0.02013956383 | G9: 0.1808437652 | R9: 0.02041496365 | S9: 0.3175849142
C10: effect_motivation_on_addition | D10: 0.05 | F10: 0.02229506574 | G10: 0.1960475041 | R10: 0.02273895716 | S10: 0.371715573
C11: effect_addition_on_motivation | D11: 1 | F11: 0.02469340992 | G11: 0.2122789815 | R11: 0.02538376809 | S11: 0.4338000439
F12: 0.02736386905 | G12: 0.2295675254 | R12: 0.02840828531 | S12: 0.5045467669
F13: 0.03033947061 | G13: 0.2479372546 | R13: 0.0318850762 | S13: 0.5845611466
F14: 0.03365748358 | G14: 0.2674063508 | R14: 0.03590385685 | S14: 0.6742770256
F15: 0.03735996056 | G15: 0.2879864361 | R15: 0.04057579113 | S15: 0.7738766605
F16: 0.04149433804 | G16: 0.3096821056 | R16: 0.04603876365 | S16: 0.883204238
F17: 0.04611409654 | G17: 0.3324906721 | R17: 0.0524637648 | S17: 1.001681737
F18: 0.05127948055 | G18: 0.3564021766 | R18: 0.06006249637 | S18: 1.128239792
F19: 0.05705827602 | G19: 0.3813997184 | R19: 0.06909624058 | S19: 1.261279
F20: 0.06352663945 | G20: 0.4074601477 | R20: 0.07988591745 | S20: 1.398677268
F21: 0.0707699687 | G21: 0.4345551533 | R21: 0.09282306405 | S21: 1.537854805
F22: 0.07888379945 | G22: 0.4626527574 | R22: 0.1083811781 | S22: 1.675899544
F23: 0.08797470438 | G23: 0.491719208 | R23: 0.1271264463 | S23: 1.809743203
F24: 0.09816116256 | G24: 0.521721228 | R24: 0.1497262887 | S24: 1.936365006
F25: 0.1095743555 | G25: 0.5526285519 | R25: 0.1769533587 | S25: 2.052990913
F26: 0.122358833 | G26: 0.5844166427 | R26: 0.2096816273 | S26: 2.157255017
F27: 0.1366729748 | G27: 0.6170694485 | R27: 0.2488699887 | S27: 2.24729818
F28: 0.152689158 | G28: 0.6505820202 | R28: 0.295527614 | S28: 2.321794438
F29: 0.1705935169 | G29: 0.6849627797 | R29: 0.3506544369 | S29: 2.37991315
F30: 0.1905851643 | G30: 0.7202351911 | R30: 0.4151503825 | S30: 2.42123869
F31: 0.2128747174 | G31: 0.7564385577 | R31: 0.4896893451 | S31: 2.445676172
F32: 0.2376819568 | G32: 0.7936276367 | R32: 0.5745597923 | S32: 2.453370874
F33: 0.2652324297 | G33: 0.8318707345 | R33: 0.669484289 | S33: 2.444662394
F34: 0.2957528033 | G34: 0.8712459216 | R34: 0.7734449499 | S34: 2.420084369
F35: =F34+F34*rate_addition*(1-F34/car_addition)+F34*(effect_motivation_on_addition*G34) -> 0.3294647827 | G35: =G34+G34*rate_motivation*(1-G34/car_motivation)+G34*(effect_addition_on_motivation*(F35-F34)) -> 0.9118349928 | R35: =R34+R34*rate_addition*(1-R34/car_addition)+R34*(effect_motivation_on_addition*S34) -> 0.8845578375 | S35: 2.380408556
F36: 0.3665774326 | G36: 0.9537147995 | R36: 1.000049817 | S36: =S35+S35*rate_motivation*(1-S35/car_motivation)+S35*(effect_addition_on_motivation*((R36-R35)/R36)) -> 2.326719323
F37: 0.4072777906 | G37: 0.9969456213 | R37: 1.116386596 | S37: 2.260492503
F38: 0.4517197402 | G38: 1.041556333 | R38: 1.229572529 | S38: 2.183644405
F39: 0.5000112197 | G39: 1.087526303 | R39: 1.33559238 | S39: 2.098517113
F40: 0.5521999874 | G40: 1.134764245 | R40: 1.430909091 | S40: 2.007779297
F41: 0.6082583436 | G41: 1.183084699 | R41: 1.5128974 | S41: 1.914246854
F42: 0.6680674137 | G42: 1.232183424 | R42: 1.58010424 | S42: 1.820656422
F43: 0.7314018278 | G43: 1.281613783 | R43: 1.63228307 | S43: 1.729443602
F44: 0.7979158803 | G44: 1.330767099 | R44: 1.67022365 | S44: 1.642576258
F45: 0.8671325032 | G45: 1.378860906 | R45: 1.695454797 | S45: 1.561472435
F46: 0.9384366312 | G46: 1.424939731 | R46: 1.709913876 | S46: 1.487003916
F47: 1.011074745 | G47: 1.467893315 | R47: 1.715657149 | S47: 1.419564084
F48: 1.084162499 | G48: 1.506496593 | R48: 1.714649182 | S48: 1.359169775
F49: 1.156702272 | G49: 1.539473975 | R49: 1.708636886 | S49: 1.305569902
F50: 1.227612137 | G50: 1.565587252 | R50: 1.699093818 | S50: 1.258342799
F51: 1.29576689 | G51: 1.583741846 | R51: 1.687213343 | S51: 1.216973827
F52: 1.360050408 | G52: 1.593100704 | R52: 1.673930515 | S52: 1.180911855
F53: 1.419416601 | G53: 1.593190113 | R53: 1.659957449 | S53: 1.149607168
F54: 1.472953937 | G54: 1.583978805 | R54: 1.64582227 | S54: 1.122534795
F55: 1.519946391 | G55: 1.565912852 | R55: 1.63190604 | S55: 1.099207319
F56: 1.559922507 | G56: 1.539894944 | R56: 1.618475065 | S56: 1.079180565
F57: 1.592684774 | G57: 1.507207244 | R57: 1.60570776 | S57: 1.062054771
F58: 1.618314074 | G58: 1.469389267 | R58: 1.593716274 | S58: 1.047473071
F59: 1.637148103 | G59: 1.428092233 | R59: 1.582563489 | S59: 1.035118548
F60: 1.649737447 | G60: 1.384935458 | R60: 1.57227616 | S60: 1.024710629
F61: 1.656786822 | G61: 1.34138731 | R61: 1.562854948 | S61: 1.016001338
F62: 1.659090888 | G62: 1.298684694 | R62: 1.55428202 | S62: 1.008771658
F63: 1.657473516 | G63: 1.257794515 | R63: 1.546526745 | S63: 1.002828171
F64: 1.652737077 | G64: 1.219411795 | R64: 1.539549951 | S64: 0.9980000278
F65: 1.645625154 | G65: 1.183984099 | R65: 1.533307086 | S65: 0.9941362643
F66: 1.636799156 | G66: 1.151750833 | R66: 1.527750541 | S66: 0.9911034506
F67: =F66+F66*rate_addition*(1-F66/car_addition)+F66*(effect_motivation_on_addition*G66) -> 1.626827163 | G67: =G66+G66*rate_motivation*(1-G66/car_motivation)+G66*(effect_addition_on_motivation*(F67-F66)) -> 1.122787667 | R67: =R66+R66*rate_addition*(1-R66/car_addition)+R66*(effect_motivation_on_addition*S66) -> 1.522831365 | S67: 0.9887836463
F68: 1.616182291 | G68: 1.097049289 | R68: 1.518500503 | S68: =S67+S67*rate_motivation*(1-S67/car_motivation)+S67*(effect_addition_on_motivation*((R68-R67)/R68)) -> 0.9870726255
F69: 1.605247582 | G69: 1.074406588 | R69: 1.514709689 | S69: 0.9858783374
F70: 1.594324789 | G70: 1.054676775 | R70: 1.511412087 | S70: 0.9851195702
F71: 1.583644981 | G71: 1.037646397 | R71: 1.508562728 | S71: 0.9847247855
F72: 1.573379512 | G72: 1.023088105 | R72: 1.506118806 | S72: 0.984631098
F73: 1.563650448 | G73: 1.010772298 | R73: 1.504039871 | S73: 0.9847833777
F74: 1.554539948 | G74: 1.000474824 | R74: 1.502287938 | S74: 0.985133454
F75: 1.546098402 | G75: 0.9919817642 | R75: 1.500827532 | S75: 0.9856394063
F76: 1.538351286 | G76: 0.9850921611 | R76: 1.499625695 | S76: 0.9862649273
F77: 1.531304836 | G77: 0.9796193183 | R77: 1.498651954 | S77: 0.9869787486
F78: 1.52495066 | G78: 0.9753911751 | R78: 1.497878263 | S78: 0.9877541196
F79: 1.519269445 | G79: 0.9722500915 | R79: 1.497278931 | S79: 0.9885683329
F80: 1.514233918 | G80: 0.9700522847 | R80: 1.496830531 | S80: 0.9894022896
F81: 1.509811177 | G81: 0.9686670802 | R81: 1.496511798 | S81: 0.9902401027
F82: 1.505964535 | G82: 0.9679760814 | R82: 1.496303522 | S82: 0.9910687313
F83: 1.502654953 | G83: 0.9678723237 | R83: 1.496188433 | S83: 0.9918776469
F84: 1.499842165 | G84: 0.9682594525 | R84: 1.496151086 | S84: 0.9926585262
F85: 1.497485547 | G85: 0.9690509436 | R85: 1.496177744 | S85: 0.9934049704
F86: 1.495544794 | G86: 0.9701693768 | R86: 1.496256255 | S86: 0.9941122492
F87: 1.493980439 | G87: 0.9715457625 | R87: 1.496375936 | S87: 0.9947770674
F88: 1.492754246 | G88: 0.9731189192 | R88: 1.496527459 | S88: 0.9953973534
F89: 1.491829516 | G89: 0.9748348965 | R89: 1.496702735 | S89: 0.9959720688
F90: 1.491171311 | G90: 0.976646437 | R90: 1.496894806 | S90: 0.9965010361
F91: 1.490746612 | G91: 0.9785124733 | R91: 1.497097742 | S91: 0.9969847867
F92: 1.490524434 | G92: 0.9803976515 | R92: 1.497306535 | S92: 0.9974244241
F93: 1.490475902 | G93: 0.9822718797 | R93: 1.497517008 | S93: 0.9978215043
F94: 1.490574279 | G94: 0.9841098962 | R94: 1.497725724 | S94: 0.9981779307
F95: 1.490794984 | G95: 0.9858908548 | R95: 1.4979299 | S95: 0.9984958629
F96: 1.491115571 | G96: 0.9875979264 | R96: 1.498127332 | S96: 0.9987776379
F97: 1.491515695 | G97: 0.989217915 | R97: 1.498316319 | S97: 0.9990257033
F98: 1.49197706 | G98: 0.9907408886 | R98: 1.498495597 | S98: 0.9992425605
F99: =F98+F98*rate_addition*(1-F98/car_addition)+F98*(effect_motivation_on_addition*G98) -> 1.492483345 | G99: =G98+G98*rate_motivation*(1-G98/car_motivation)+G98*(effect_addition_on_motivation*(F99-F98)) -> 0.992159824 | R99: =R98+R98*rate_addition*(1-R98/car_addition)+R98*(effect_motivation_on_addition*S98) -> 1.49866428 | S99: 0.9994307175
F100: 1.493020127 | G100: 0.9934702679 | R100: 1.498821802 | S100: =S99+S99*rate_motivation*(1-S99/car_motivation)+S99*(effect_addition_on_motivation*((R100-R99)/R100)) -> 0.9995926503
F101: 1.493574785 | G101: 0.9946700136 | R101: 1.498967865 | S101: 0.9997307718
F102: 1.494136402 | G102: 0.9957587952 | R102: 1.499102401 | S102: 0.9998474073
F103: 1.494695657 | G103: 0.9967379995 | R103: 1.499225522 | S103: 0.9999447752
F104: 1.49524471 | G104: 0.9976103974 | R104: 1.499337494 | S104: 1.000024974
F105: 1.49577709 | G105: 0.9983798947 | R105: 1.499438699 | S105: 1.000089973
F106: 1.496287577 | G106: 0.9990513031 | R106: 1.499529608 | S106: 1.000141606
F107: 1.496772086 | G107: 0.9996301322 | R107: 1.499610762 | S107: 1.000181567
F108: 1.497227551 | G108: 1.000122402 | R108: 1.499682746 | S108: 1.000211416
F109: 1.497651813 | G109: 1.000534474 | R109: 1.499746177 | S109: 1.000232573
F110: 1.498043512 | G110: 1.000872906 | R110: 1.499801684 | S110: 1.000246329
F111: 1.498401985 | G111: 1.001144325 | R111: 1.4998499 | S111: 1.000253845
F112: 1.498727165 | G112: 1.001355314 | R112: 1.499891449 | S112: 1.000256162
F113: 1.499019491 | G113: 1.001512321 | R113: 1.499926941 | S113: 1.000254208
F114: 1.499279821 | G114: 1.001621584 | R114: 1.499956964 | S114: 1.000248802
F115: 1.499509356 | G115: 1.00168907 | R115: 1.499982079 | S115: 1.000240663
F116: 1.499709568 | G116: 1.001720427 | R116: 1.500002817 | S116: 1.000230419
F117: 1.499882131 | G117: 1.001720949 | R117: 1.500019676 | S117: 1.000218614
F118: 1.500028871 | G118: 1.00169555 | R118: 1.50003312 | S118: 1.000205713
F119: 1.500151709 | G119: 1.001648754 | R119: 1.500043581 | S119: 1.000192112
F120: 1.500252619 | G120: 1.001584684 | R120: 1.500051453 | S120: 1.000178146
F121: 1.500333591 | G121: 1.001507064 | R121: 1.500057096 | S121: 1.000164091
F122: 1.500396597 | G122: 1.001419231 | R122: 1.500060838 | S122: 1.000150174
F123: 1.500443562 | G123: 1.001324138 | R123: 1.500062976 | S123: 1.00013658
F124: 1.500476348 | G124: 1.001224378 | R124: 1.500063773 | S124: 1.000123451
F125: 1.50049673 | G125: 1.001122198 | R125: 1.500063466 | S125: 1.0001109
F126: 1.500506389 | G126: 1.001019522 | R126: 1.500062263 | S126: 1.000099007
F127: 1.500506895 | G127: 1.000917972 | R127: 1.500060349 | S127: 1.000087829
F128: 1.500499706 | G128: 1.000818895 | R128: 1.500057884 | S128: 1.000077402
F129: 1.500486163 | G129: 1.000723384 | R129: 1.500055006 | S129: 1.000067743
F130: 1.500467486 | G130: 1.000632304 | R130: 1.500051836 | S130: 1.000058854
F131: =F130+F130*rate_addition*(1-F130/car_addition)+F130*(effect_motivation_on_addition*G130) -> 1.500444779 | G131: =G130+G130*rate_motivation*(1-G130/car_motivation)+G130*(effect_addition_on_motivation*(F131-F130)) -> 1.000546312 | R131: =R130+R130*rate_addition*(1-R130/car_addition)+R130*(effect_motivation_on_addition*S130) -> 1.500048475 | S131: 1.000050727
F132: 1.500419028 | G132: 1.000465885 | R132: 1.500045008 | S132: =S131+S131*rate_motivation*(1-S131/car_motivation)+S131*(effect_addition_on_motivation*((R132-R131)/R132)) -> 1.000043343
F133: 1.500391107 | G133: 1.000391342 | R133: 1.500041507 | S133: 1.000036675
F134: 1.500361784 | G134: 1.000322858 | R134: 1.500038032 | S134: 1.00003069
F135: 1.500331724 | G135: 1.000260491 | R135: 1.500034629 | S135: 1.000025352
F136: 1.500301495 | G136: 1.000204199 | R136: 1.500031336 | S136: 1.000020622
F137: 1.50027158 | G137: 1.000153853 | R137: 1.500028182 | S137: 1.000016457
F138: 1.500242377 | G138: 1.000109258 | R138: 1.500025189 | S138: 1.000012816
F139: 1.50021421 | G139: 1.000070161 | R139: 1.500022372 | S139: 1.000009656
F140: 1.500187337 | G140: 1.000036269 | R140: 1.50001974 | S140: 1.000006936
F141: 1.500161953 | G141: 1.000007258 | R141: 1.500017299 | S141: 1.000004615
F142: 1.500138202 | G142: 0.9999827808 | R142: 1.500015051 | S142: 1.000002655
F143: 1.500116178 | G143: 0.9999624793 | R143: 1.500012992 | S143: 1.000001017
F144: 1.500095936 | G144: 0.9999459897 | R144: 1.500011119 | S144: 0.9999996668
F145: 1.500077494 | G145: 0.9999329491 | R145: 1.500009427 | S145: 0.9999985715
F146: 1.50006084 | G146: 0.9999230011 | R146: 1.500007905 | S146: 0.9999977003
F147: 1.500045938 | G147: 0.9999158001 | R147: 1.500006547 | S147: 0.9999970248
F148: 1.500032732 | G148: 0.9999110143 | R148: 1.500005342 | S148: 0.9999965188
F149: 1.500021148 | G149: 0.9999083291 | R149: 1.50000428 | S149: 0.9999961587
F150: 1.5000111 | G150: 0.9999074486 | R150: 1.500003349 | S150: 0.9999959228
F151: 1.500002494 | G151: 0.9999080972 | R151: 1.500002541 | S151: 0.9999957917
F152: 1.499995227 | G152: 0.9999100205 | R152: 1.500001844 | S152: 0.999995748
